fUSD/lending_fUSD_20240814
["ID","MTS","AMOUNT","RATE_DAILY","PERIOD"]
[334827603,1723605079452,-2480.21,0.0001452,2]
[334827604,1723605079461,-500.0,0.0001452,2]
[334827605,1723605079472,-553.9,0.0001452,2]
[334827606,1723605079482,-917.23,0.0001452,2]
[334827607,1723605079492,-1073.07,0.0001452,2]
[334827608,1723605079501,-500.0,0.0001452,2]
[334827609,1723605079511,-500.0,0.0001452,2]
[334827610,1723605079520,-500.0,0.0001452,2]
[334827611,1723605079530,-500.0,0.0001452,2]
[334827612,1723605079540,-649.52,0.0001452,2]
[334827613,1723605079550,-1290.02,0.0001452,2]
[334827614,1723605079561,-3127.31,0.0001452,2]
[334827615,1723605079570,-1748.45,0.0001452,2]
[334827616,1723605079580,-858.47,0.0001452,2]
[334827617,1723605079591,-793.31,0.0001452,2]
[334827618,1723605079600,-500.0,0.0001452,2]
[334827619,1723605079611,-500.0,0.0001452,2]
[334827620,1723605079621,-609.62,0.0001452,2]
[334827621,1723605079632,-500.0,0.0001452,2]
[334827622,1723605079642,-500.0,0.0001452,2]
[334827623,1723605079651,-500.0,0.0001452,2]
[334827624,1723605079661,-500.0,0.0001452,2]
[334827625,1723605079671,-1268.63,0.0001452,2]
[334827626,1723605079681,-1098.68,0.0001452,2]
[334827627,1723605079691,-500.0,0.0001452,2]
[334827628,1723605079701,-500.0,0.0001452,2]
[334827629,1723605079711,-500.0,0.0001452,2]
[334827630,1723605079720,-500.0,0.0001452,2]
[334827631,1723605079730,-500.0,0.0001452,2]
[334827632,1723605079741,-500.0,0.0001452,2]
[334827633,1723605079751,-501.42733558,0.0001452,2]
[334827634,1723605079760,-1442.17,0.0001452,2]
[334827635,1723605079770,-500.0,0.0001452,2]
[334827636,1723605079780,-500.0,0.0001452,2]
[334827637,1723605079790,-2112.81,0.0001452,2]
[334827638,1723605079800,-2201.12,0.0001452,2]
[334827639,1723605079810,-935.54,0.0001452,2]
[334827640,1723605079820,-500.0,0.0001452,2]
[334827641,1723605079830,-500.0,0.0001452,2]
[334827642,1723605079841,-702.32,0.0001452,2]
[334827643,1723605079851,-500.0,0.0001452,2]
[334827644,1723605079860,-647.97,0.0001452,2]
[334827645,1723605079870,-500.0,0.0001452,2]
[334827646,1723605079880,-500.0,0.0001452,2]
[334827647,1723605079889,-507.01,0.0001452,2]
[334827648,1723605079899,-2514.69,0.0001452,2]
[334827649,1723605079909,-500.0,0.0001452,2]
[334827650,1723605079919,-1346.58,0.0001452,2]
[334827651,1723605079930,-500.0,0.0001452,2]
[334827652,1723605079940,-500.0,0.0001452,2]
[334827653,1723605079950,-1144.08,0.0001452,2]
[334827654,1723605079960,-3141.73,0.0001452,2]
[334827655,1723605079970,-500.0,0.0001452,2]
[334827656,1723605079980,-1273.67,0.0001452,2]
[334827657,1723605079990,-500.0,0.0001452,2]
[334827658,1723605080000,-2542.61,0.0001452,2]
[334827659,1723605080009,-500.0,0.0001452,2]
[334827660,1723605080019,-500.0,0.0001452,2]
[334827661,1723605080029,-500.0,0.0001452,2]
[334827662,1723605080038,-500.0,0.0001452,2]
[334827663,1723605080048,-500.0,0.0001452,2]
[334827664,1723605080058,-500.0,0.0001452,2]
[334827665,1723605080067,-2720.24,0.0001452,2]
[334827666,1723605080077,-1731.7,0.0001452,2]
[334827667,1723605080087,-743.4,0.0001452,2]
[334827668,1723605080096,-500.0,0.0001452,2]
[334827669,1723605080106,-1478.0,0.0001452,2]
[334827670,1723605080115,-500.0,0.0001452,2]
[334827671,1723605080125,-500.0,0.0001452,2]
[334827672,1723605080135,-500.0,0.0001452,2]
[334827673,1723605080144,-500.0,0.0001452,2]
[334827674,1723605080154,-500.0,0.0001452,2]
[334827675,1723605080163,-3406.91,0.0001452,2]
[334827676,1723605080174,-500.0,0.0001452,2]
[334827677,1723605080183,-597.7,0.0001452,2]
[334827678,1723605080193,-500.0,0.0001452,2]
[334827679,1723605080203,-3422.23,0.0001452,2]
[334827680,1723605080212,-500.0,0.0001452,2]
[334827681,1723605080222,-500.0,0.0001452,2]
[334827682,1723605080232,-2279.94,0.0001452,2]
[334827683,1723605080242,-1289.81,0.0001452,2]
[334827684,1723605080251,-500.0,0.0001452,2]
[334827685,1723605080261,-665.5,0.0001452,2]
[334827686,1723605080271,-500.0,0.0001452,2]
[334827687,1723605080280,-1427.7,0.0001452,2]
[334827688,1723605080289,-500.0,0.0001452,2]
[334827689,1723605080299,-500.0,0.0001452,2]
[334827690,1723605080308,-500.0,0.0001452,2]
[334827691,1723605080318,-2265.5,0.0001452,2]
[334827692,1723605080327,-172.47,0.0001452,2]
[334827693,1723605080341,-1145.17,0.0001452,2]
[334827694,1723605080351,-501.56803702,0.0001452,2]
[334827695,1723605080361,-3219.63,0.0001452,2]
[334827696,1723605080371,-500.0,0.0001452,2]
[334827697,1723605080381,-500.0,0.0001452,2]
[334827698,1723605080391,-602.6,0.0001452,2]
[334827699,1723605080401,-500.0,0.0001452,2]
[334827700,1723605080412,-1191.07,0.0001452,2]
[334827701,1723605080421,-1014.7,0.0001452,2]
[334827702,1723605080430,-500.0,0.0001452,2]
[334827703,1723605080439,-500.0,0.0001452,2]
[334827704,1723605080449,-500.0,0.0001452,2]
[334827705,1723605080459,-451.25343811,0.0001452,2]
[334827706,1723605080468,-2275.75,0.0001452,2]
[334827707,1723605080478,-500.0,0.0001452,2]
[334827708,1723605080488,-500.0,0.0001452,2]
[334827709,1723605080497,-630.85,0.0001452,2]
[334827710,1723605080507,-3552.25,0.0001452,2]
[334827711,1723605080516,-876.93,0.0001452,2]
[334827712,1723605080527,-405.80672131,0.0001452,2]
[334827713,1723605080536,-548.67673743,0.0001452,2]
[334827714,1723605080546,-320.25887275,0.0001452,2]
[334827715,1723605080556,-4102.14,0.0001452,2]
[334827716,1723605080565,-1191.95,0.0001452,2]
[334827717,1723605080575,-356.92772403,0.0001452,2]
[334827718,1723605080585,-996.84,0.0001452,2]
[334827719,1723605080604,-500.0,0.0001452,2]
[334827720,1723605080613,-3880.01,0.0001452,2]
[334827721,1723605080622,-500.0,0.0001452,2]
[334827722,1723605080632,-646.16,0.0001452,2]
[334827723,1723605080642,-1159.56,0.0001452,2]
[334827724,1723605080652,-2612.35,0.0001452,2]
[334827725,1723605080662,-769.7,0.0001452,2]
[334827726,1723605080672,-589.53,0.0001452,2]
[334827727,1723605080682,-1492.63,0.0001452,2]
[334827728,1723605080692,-1127.31,0.0001452,2]
[334827729,1723605080702,-1344.56,0.0001452,2]
[334827730,1723605080711,-582.87,0.0001452,2]
[334827731,1723605080722,-500.0,0.0001452,2]
[334827732,1723605080731,-500.0,0.0001452,2]
[334827733,1723605080742,-955.28,0.0001452,2]
[334827734,1723605080751,-500.0,0.0001452,2]
[334827735,1723605080762,-500.0,0.0001452,2]
[334827736,1723605080772,-1804.03,0.0001452,2]
[334827737,1723605080782,-1584.08,0.0001452,2]
[334827738,1723605080792,-2222.02,0.0001452,2]
[334827739,1723605080802,-433.17,0.0001452,2]
[334827740,1723605080812,-500.0,0.0001452,2]
[334827741,1723605080822,-626.87,0.0001452,2]
[334827742,1723605080832,-2565.94,0.0001452,2]
[334827743,1723605080845,-1633.43,0.0001452,2]
[334827744,1723605080855,-1002.48,0.0001452,2]
[334827745,1723605080865,-500.0,0.0001452,2]
[334827746,1723605080875,-1239.94,0.0001452,2]
[334827747,1723605080884,-1158.93,0.0001452,2]
[334827748,1723605080894,-1602.88,0.0001452,2]
[334827749,1723605080904,-500.0,0.0001452,2]
[334827750,1723605080914,-985.46,0.0001452,2]
[334827751,1723605080924,-500.0,0.0001452,2]
[334827752,1723605080934,-500.0,0.0001452,2]
[334827753,1723605080944,-500.0,0.0001452,2]
[334827754,1723605080954,-500.0,0.0001452,2]
[334827755,1723605080963,-3593.7,0.0001452,2]
[334827756,1723605080973,-953.98,0.0001452,2]
[334827757,1723605080983,-1370.77,0.0001452,2]
[334827758,1723605080992,-737.54,0.0001452,2]
[334827759,1723605081002,-500.0,0.0001452,2]
[334827760,1723605081011,-1630.24,0.0001452,2]
[334827761,1723605081021,-1897.14,0.0001452,2]
[334827762,1723605081031,-880.42,0.0001452,2]
[334827763,1723605081041,-501.36864047,0.0001452,2]
[334827764,1723605081051,-500.0,0.0001452,2]
[334827765,1723605081061,-500.0,0.0001452,2]
[334827766,1723605081071,-557.05,0.0001452,2]
[334827767,1723605081081,-875.47,0.0001452,2]
[334827768,1723605081094,-500.0,0.0001452,2]
[334827769,1723605081103,-500.0,0.0001452,2]
[334827770,1723605081113,-500.0,0.0001452,2]
[334827771,1723605081123,-500.0,0.0001452,2]
[334827772,1723605081132,-1181.63,0.0001452,2]
[334827773,1723605081141,-500.0,0.0001452,2]
[334827774,1723605081151,-1030.34,0.0001452,2]
[334827775,1723605081161,-2181.86,0.0001452,2]
[334827776,1723605081171,-2025.74,0.0001452,2]
[334827777,1723605081180,-500.0,0.0001452,2]
[334827778,1723605081189,-1413.32,0.0001452,2]
[334827779,1723605081199,-910.05,0.0001452,2]
[334827780,1723605081208,-237.07830191,0.0001452,2]
[334827781,1723605081218,-500.0,0.0001452,2]
[334827782,1723605081228,-503.14,0.0001452,2]
[334827783,1723605081237,-529.76,0.0001452,2]
[334827784,1723605081247,-510.64,0.0001452,2]
[334827785,1723605081256,-1733.06,0.0001452,2]
[334827786,1723605081266,-868.31,0.0001452,2]
[334827787,1723605081275,-2269.46,0.0001452,2]
[334827788,1723605081285,-522.67,0.0001452,2]
[334827789,1723605081295,-500.0,0.0001452,2]
[334827790,1723605081304,-881.51,0.0001452,2]
[334827791,1723605081314,-1396.78,0.0001452,2]
[334827792,1723605081323,-706.73,0.0001452,2]
[334827793,1723605081334,-772.89,0.0001452,2]
[334827794,1723605081347,-500.0,0.0001452,2]
[334827795,1723605081357,-500.0,0.0001452,2]
[334827796,1723605081366,-2133.37,0.0001452,2]
[334827797,1723605081376,-500.0,0.0001452,2]
[334827798,1723605081386,-500.0,0.0001452,2]
[334827799,1723605081396,-500.0,0.0001452,2]
[334827800,1723605081406,-500.0,0.0001452,2]
[334827801,1723605081416,-1205.91,0.0001452,2]
[334827802,1723605081427,-500.0,0.0001452,2]
[334827803,1723605081437,-929.46,0.0001452,2]
[334827804,1723605081447,-500.0,0.0001452,2]
[334827805,1723605081456,-500.0,0.0001452,2]
[334827806,1723605081466,-613.02,0.0001452,2]
[334827807,1723605081475,-202.94930232,0.0001452,2]
[334827808,1723605081484,-2071.92,0.0001452,2]
[334827809,1723605081493,-849.35,0.0001452,2]
[334827810,1723605081503,-500.0,0.0001452,2]
[334827811,1723605081512,-500.0,0.0001452,2]
[334827812,1723605081522,-1149.19,0.0001452,2]
[334827813,1723605081531,-519.43,0.0001452,2]
[334827814,1723605081541,-816.63,0.0001452,2]
[334827815,1723605081551,-1338.21,0.0001452,2]
[334827816,1723605081560,-748.99,0.0001452,2]
[334827817,1723605081569,-500.0,0.0001452,2]
[334827818,1723605081579,-500.0,0.0001452,2]
[334827819,1723605081667,-500.0,0.0001452,2]
[334827820,1723605081676,-699.54,0.0001452,2]
[334827821,1723605081685,-1022.75,0.0001452,2]
[334827822,1723605081695,-523.86,0.0001452,2]
[334827823,1723605081704,-612.84,0.0001452,2]
[334827824,1723605081713,-375.50792717,0.0001452,2]
[334827825,1723605081723,-500.0,0.0001452,2]
[334827826,1723605081732,-500.0,0.0001452,2]
[334827827,1723605081742,-500.0,0.0001452,2]
[334827828,1723605081751,-500.0,0.0001452,2]
[334827829,1723605081760,-1197.98,0.0001452,2]
[334827830,1723605081770,-919.6,0.0001452,2]
[334827831,1723605081779,-1287.56,0.0001452,2]
[334827832,1723605081788,-500.0,0.0001452,2]
[334827833,1723605081797,-503.29,0.0001452,2]
[334827834,1723605081807,-495.25,0.0001452,2]
[334827835,1723605081816,-500.0,0.0001452,2]
[334827836,1723605081825,-1236.66,0.0001452,2]
[334827837,1723605081834,-1706.6,0.0001452,2]
[334827838,1723605081844,-500.0,0.0001452,2]
[334827839,1723605081853,-727.3,0.0001452,2]
[334827840,1723605081863,-350.64438233,0.0001452,2]
[334827841,1723605081872,-500.0,0.0001452,2]
[334827842,1723605081881,-536.46,0.0001452,2]
[334827843,1723605081890,-500.0,0.0001452,2]
[334827844,1723605081900,-721.37,0.0001452,2]
[334827845,1723605081909,-506.12074982,0.0001452,2]
[334827846,1723605081918,-2182.15,0.0001452,2]
[334827847,1723605081927,-1786.37,0.0001452,2]
[334827848,1723605081937,-2427.03,0.0001452,2]
[334827849,1723605081946,-680.94,0.0001452,2]
[334827850,1723605081956,-432.7863467,0.0001452,2]
[334827851,1723605081965,-500.0,0.0001452,2]
[334827852,1723605081975,-771.59,0.0001452,2]
[334827853,1723605081984,-1367.74,0.0001452,2]
[334827854,1723605081993,-500.0,0.0001452,2]
[334827855,1723605082002,-1130.15,0.0001452,2]
[334827856,1723605082012,-1950.59,0.0001452,2]
[334827857,1723605082022,-750.13,0.0001452,2]
[334827858,1723605082030,-501.03326573,0.0001452,2]
[334827859,1723605082040,-500.0,0.0001452,2]
[334827860,1723605082049,-1812.05,0.0001452,2]
[334827861,1723605082059,-500.0,0.0001452,2]
[334827862,1723605082068,-576.07,0.0001452,2]
[334827863,1723605082077,-1411.86,0.0001452,2]
[334827864,1723605082088,-500.0,0.0001452,2]
[334827865,1723605082097,-672.92,0.0001452,2]
[334827866,1723605082106,-383.88596002,0.0001452,2]
[334827867,1723605082116,-2545.33,0.0001452,2]
[334827868,1723605082125,-500.0,0.0001452,2]
[334827869,1723605082134,-500.0,0.0001452,2]
[334827870,1723605082143,-500.0,0.0001452,2]
[334827871,1723605082153,-500.0,0.0001452,2]
[334827872,1723605082164,-500.0,0.0001452,2]
[334827873,1723605082174,-500.0,0.0001452,2]
[334827874,1723605082184,-541.3,0.0001452,2]
[334827875,1723605082193,-500.0,0.0001452,2]
[334827876,1723605082203,-872.09,0.0001452,2]
[334827877,1723605082213,-6288.73,0.0001452,2]
[334827878,1723605082222,-500.0,0.0001452,2]
[334827879,1723605082232,-500.0,0.0001452,2]
[334827880,1723605082241,-500.0,0.0001452,2]
[334827881,1723605082251,-177.54657847,0.0001452,2]
[334827882,1723605082260,-500.0,0.0001452,2]
[334827883,1723605082269,-1035.1,0.0001452,2]
[334827884,1723605082279,-500.0,0.0001452,2]
[334827885,1723605082288,-1340.06,0.0001452,2]
[334827886,1723605082297,-500.0,0.0001452,2]
[334827887,1723605082307,-500.0,0.0001452,2]
[334827888,1723605082317,-1609.25,0.0001452,2]
[334827889,1723605082326,-2362.09,0.0001452,2]
[334827890,1723605082336,-500.0,0.0001452,2]
[334827891,1723605082349,-500.0,0.0001452,2]
[334827892,1723605082359,-1034.45,0.0001452,2]
[334827893,1723605082368,-500.0,0.0001452,2]
[334827894,1723605082378,-902.63,0.0001452,2]
[334827895,1723605082387,-557.88,0.0001452,2]
[334827896,1723605082396,-500.0,0.0001452,2]
[334827897,1723605082406,-943.38,0.0001452,2]
[334827898,1723605082417,-3295.82,0.0001452,2]
[334827899,1723605082427,-500.0,0.0001452,2]
[334827900,1723605082436,-995.76,0.0001452,2]
[334827901,1723605082445,-500.0,0.0001452,2]
[334827902,1723605082455,-500.0,0.0001452,2]
[334827903,1723605082464,-500.0,0.0001452,2]
[334827904,1723605082473,-500.0,0.0001452,2]
[334827905,1723605082482,-756.18,0.0001452,2]
[334827906,1723605082491,-500.0,0.0001452,2]
[334827907,1723605082500,-681.83,0.0001452,2]
[334827908,1723605082510,-1346.5,0.0001452,2]
[334827909,1723605082519,-1093.21,0.0001452,2]
[334827910,1723605082528,-1173.15,0.0001452,2]
[334827911,1723605082538,-1976.94,0.0001452,2]
[334827912,1723605082547,-675.4,0.0001452,2]
[334827913,1723605082557,-500.0,0.0001452,2]
[334827914,1723605082567,-500.0,0.0001452,2]
[334827915,1723605082577,-533.76,0.0001452,2]
[334827916,1723605082586,-817.86,0.0001452,2]
[334827917,1723605082596,-1591.01,0.0001452,2]
[334827918,1723605082606,-736.58,0.0001452,2]
[334827919,1723605082615,-500.0,0.0001452,2]
[334827920,1723605082624,-500.0,0.0001452,2]
[334827921,1723605082634,-1823.18,0.0001452,2]
[334827922,1723605082643,-500.0,0.0001452,2]
[334827923,1723605082653,-1560.86,0.0001452,2]
[334827924,1723605082663,-500.0,0.0001452,2]
[334827925,1723605082673,-500.0,0.0001452,2]
[334827926,1723605082683,-868.55,0.0001452,2]
[334827927,1723605082692,-703.88,0.0001452,2]
[334827928,1723605082702,-549.74,0.0001452,2]
[334827929,1723605082711,-500.0,0.0001452,2]
[334827930,1723605082721,-873.62,0.0001452,2]
[334827931,1723605082731,-500.0,0.0001452,2]
[334827932,1723605082740,-1218.76,0.0001452,2]
[334827933,1723605082749,-948.65,0.0001452,2]
[334827934,1723605082759,-530.56,0.0001452,2]
[334827935,1723605082768,-500.0,0.0001452,2]
[334827936,1723605082777,-1962.68,0.0001452,2]
[334827937,1723605082786,-500.0,0.0001452,2]
[334827938,1723605082796,-500.0,0.0001452,2]
[334827939,1723605082806,-3761.99,0.0001452,2]
[334827940,1723605082816,-1100.79,0.0001452,2]
[334827941,1723605082826,-519.9,0.0001452,2]
[334827942,1723605082835,-1091.85,0.0001452,2]
[334827943,1723605082845,-500.0,0.0001452,2]
[334827944,1723605082854,-500.0,0.0001452,2]
[334827945,1723605082863,-1899.15,0.0001452,2]
[334827946,1723605082872,-591.0,0.0001452,2]
[334827947,1723605082882,-500.0,0.0001452,2]
[334827948,1723605082892,-2902.42,0.0001452,2]
[334827949,1723605082901,-681.58,0.0001452,2]
[334827950,1723605082910,-979.62,0.0001452,2]
[334827951,1723605082919,-756.88,0.0001452,2]
[334827952,1723605082928,-500.0,0.0001452,2]
[334827953,1723605082937,-522.04,0.0001452,2]
[334827954,1723605082946,-500.0,0.0001452,2]
[334827955,1723605082955,-1101.29,0.0001452,2]
[334827956,1723605082965,-1108.67,0.0001452,2]
[334827957,1723605082974,-500.0,0.0001452,2]
[334827958,1723605082983,-500.0,0.0001452,2]
[334827959,1723605082993,-1192.85,0.0001452,2]
[334827960,1723605083002,-500.0,0.0001452,2]
[334827961,1723605083011,-1671.63,0.0001452,2]
[334827962,1723605083020,-738.15,0.0001452,2]
[334827963,1723605083029,-4757.69,0.0001452,2]
[334827964,1723605083039,-817.28,0.0001452,2]
[334827965,1723605083048,-500.0,0.0001452,2]
[334827966,1723605083058,-500.0,0.0001452,2]
[334827967,1723605083067,-1634.26,0.0001452,2]
[334827968,1723605083076,-1376.93,0.0001452,2]
[334827969,1723605083086,-500.0,0.0001452,2]
[334827970,1723605083095,-404.86996732,0.0001452,2]
[334827971,1723605083104,-1110.82,0.0001452,2]
[334827972,1723605083113,-18059.26,0.0001452,2]
[334827973,1723605083122,-500.0,0.0001452,2]
[334827974,1723605083131,-2339.81,0.0001452,2]
[334827975,1723605083140,-815.45,0.0001452,2]
[334827976,1723605083150,-1022.58,0.0001452,2]
[334827977,1723605083159,-779.0,0.0001452,2]
[334827978,1723605083168,-1739.76,0.0001452,2]
[334827979,1723605083178,-500.0,0.0001452,2]
[334827980,1723605083187,-500.0,0.0001452,2]
[334827981,1723605083196,-716.15,0.0001452,2]
[334827982,1723605083205,-500.0,0.0001452,2]
[334827983,1723605083214,-824.5,0.0001452,2]
[334827984,1723605083223,-611.72,0.0001452,2]
[334827985,1723605083232,-500.0,0.0001452,2]
[334827986,1723605083241,-500.0,0.0001452,2]
[334827987,1723605083250,-573.09,0.0001452,2]
[334827988,1723605083259,-564.02,0.0001452,2]
[334827989,1723605083268,-1688.94,0.0001452,2]
[334827990,1723605083277,-500.0,0.0001452,2]
[334827991,1723605083286,-754.52,0.0001452,2]
[334827992,1723605083295,-500.0,0.0001452,2]
[334827993,1723605083304,-500.0,0.0001452,2]
[334827994,1723605083313,-2125.28,0.0001452,2]
[334827995,1723605083322,-500.0,0.0001452,2]
[334827996,1723605083332,-862.91,0.0001452,2]
[334827997,1723605083346,-1627.71,0.0001452,2]
[334827998,1723605083355,-726.59,0.0001452,2]
[334827999,1723605083364,-5975.91,0.0001452,2]
[334828000,1723605083374,-500.0,0.0001452,2]
[334828001,1723605083383,-1414.92,0.0001452,2]
[334828002,1723605083392,-592.73,0.0001452,2]
[334828003,1723605083402,-902.13,0.0001452,2]
[334828004,1723605083411,-2088.05,0.0001452,2]
[334828005,1723605083421,-5374.81,0.0001452,2]
[334828006,1723605083429,-1387.45,0.0001452,2]
[334828007,1723605083438,-768.36,0.0001452,2]
[334828008,1723605083447,-3876.74,0.0001452,2]
[334828009,1723605083456,-500.0,0.0001452,2]
[334828010,1723605083465,-500.0,0.0001452,2]
[334828011,1723605083474,-1245.3,0.0001452,2]
[334828012,1723605083483,-285.16868396,0.0001452,2]
[334828013,1723605083492,-618.4,0.0001452,2]
[334828014,1723605083501,-2815.43,0.0001452,2]
[334828015,1723605083510,-3826.76,0.0001452,2]
[334828016,1723605083519,-500.0,0.0001452,2]
[334828017,1723605083528,-807.19,0.0001452,2]
[334828018,1723605083538,-2271.26,0.0001452,2]
[334828019,1723605083547,-855.92,0.0001452,2]
[334828020,1723605083556,-7857.05,0.0001452,2]
[334828021,1723605083565,-1088.18,0.0001452,2]
[334828022,1723605083574,-500.0,0.0001452,2]
[334828023,1723605083583,-752.58,0.0001452,2]
[334828024,1723605083593,-500.0,0.0001452,2]
[334828025,1723605083604,-3025.79,0.0001452,2]
[334828026,1723605083614,-2164.19,0.0001452,2]
[334828027,1723605083623,-3869.55,0.0001452,2]
[334828028,1723605083632,-892.24,0.0001452,2]
[334828029,1723605083641,-500.0,0.0001452,2]
[334828030,1723605083650,-500.0,0.0001452,2]
[334828031,1723605083659,-662.61,0.0001452,2]
[334828032,1723605083668,-916.14,0.0001452,2]
[334828033,1723605083677,-795.16,0.0001452,2]
[334828034,1723605083687,-26609.07,0.0001452,2]
[334828035,1723605083698,-500.0,0.0001452,2]
[334828036,1723605083707,-500.0,0.0001452,2]
[334828037,1723605083716,-3398.55,0.0001452,2]
[334828038,1723605083726,-22218.98,0.0001452,2]
[334828039,1723605083735,-500.0,0.0001452,2]
[334828040,1723605083744,-2542.25,0.0001452,2]
[334828041,1723605083754,-1245.59,0.0001452,2]
[334828042,1723605083763,-1016.07,0.0001452,2]
[334828043,1723605083772,-500.0,0.0001452,2]
[334828044,1723605083782,-2255.75,0.0001452,2]
[334828045,1723605083791,-500.0,0.0001452,2]
[334828046,1723605083800,-500.0,0.0001452,2]
[334828047,1723605083810,-1410.58,0.0001452,2]
[334828048,1723605083819,-500.0,0.0001452,2]
[334828049,1723605083829,-941.19,0.0001452,2]
[334828050,1723605083839,-500.0,0.0001452,2]
[334828051,1723605083849,-8200.38,0.0001452,2]
[334828052,1723605083858,-500.0,0.0001452,2]
[334828053,1723605083867,-500.0,0.0001452,2]
[334828054,1723605083876,-5134.83,0.0001452,2]
[334828055,1723605083886,-500.0,0.0001452,2]
[334828056,1723605083895,-1475.56,0.0001452,2]
[334828057,1723605083904,-500.0,0.0001452,2]
[334828058,1723605083914,-1590.03,0.0001452,2]
[334828059,1723605083923,-500.0,0.0001452,2]
[334828060,1723605083932,-500.0,0.0001452,2]
[334828061,1723605083942,-2005.17,0.0001452,2]
[334828062,1723605083951,-500.0,0.0001452,2]
[334828063,1723605083960,-500.0,0.0001452,2]
[334828064,1723605083970,-500.0,0.0001452,2]
[334828065,1723605083979,-500.0,0.0001452,2]
[334828066,1723605083988,-598.02,0.0001452,2]
[334828067,1723605083997,-12984.39,0.0001452,2]
[334828068,1723605084007,-7951.86,0.0001452,2]
[334828069,1723605084016,-1032.44,0.0001452,2]
[334828070,1723605084025,-739.61,0.0001452,2]
[334828071,1723605084034,-500.0,0.0001452,2]
[334828072,1723605084043,-500.0,0.0001452,2]
[334828073,1723605084052,-2078.47,0.0001452,2]
[334828074,1723605084062,-500.0,0.0001452,2]
[334828075,1723605084071,-3476.41,0.0001452,2]
[334828076,1723605084080,-39703.17,0.0001452,2]
[334828077,1723605084090,-18895.17,0.0001452,2]
[334828078,1723605084106,-2008.56,0.0001452,2]
[334828079,1723605084116,-500.0,0.0001452,2]
[334828080,1723605084125,-500.0,0.0001452,2]
[334828081,1723605084134,-960.08,0.0001452,2]
[334828082,1723605084144,-16246.9,0.0001452,2]
[334828083,1723605084153,-23755.04,0.0001452,2]
[334828084,1723605084162,-500.0,0.0001452,2]
[334828085,1723605084171,-1931.43,0.0001452,2]
[334828086,1723605084180,-1617.8,0.0001452,2]
[334828087,1723605084189,-596.55,0.0001452,2]
[334828088,1723605084199,-1313.03,0.0001452,2]
[334828089,1723605084209,-500.0,0.0001452,2]
[334828090,1723605084218,-7013.22,0.0001452,2]
[334828091,1723605084227,-5544.75,0.0001452,2]
[334828092,1723605084237,-500.0,0.0001452,2]
[334828093,1723605084246,-500.0,0.0001452,2]
[334828094,1723605084256,-502.28,0.0001452,2]
[334828095,1723605084265,-13355.74,0.0001452,2]
[334828096,1723605084275,-500.0,0.0001452,2]
[334828097,1723605084284,-560.1,0.0001452,2]
[334828098,1723605084294,-500.0,0.0001452,2]
[334828099,1723605084303,-500.0,0.0001452,2]
[334828100,1723605084312,-500.0,0.0001452,2]
[334828101,1723605084321,-2441.9,0.0001452,2]
[334828102,1723605084332,-1240.21,0.0001452,2]